fUSD/lending_fUSD_20240205
["ID","MTS","AMOUNT","RATE_DAILY","PERIOD"]
[313326153,1707160238785,-150.0,0.00022906,2]
[313326154,1707160238796,-150.0,0.00022909,2]
[313326155,1707160238808,-675.61099642,0.00022909,2]
[313326156,1707160238819,-268.2251325,0.00022909,2]
[313326157,1707160238831,-2194.80219932,0.00022909,2]
[313326158,1707160238843,-150.0,0.00022918,2]
[313326159,1707160238854,-300.0,0.00022918,2]
[313326160,1707160238865,-302.97572168,0.00022924,2]
[313326161,1707160238875,-150.0,0.00022926,2]
[313326162,1707160238885,-150.0,0.00022927,2]
[313326163,1707160238895,-150.0,0.00022927,2]
[313326164,1707160238904,-150.0,0.00022928,2]
[313326165,1707160238914,-150.0,0.0002293,2]
[313326166,1707160238923,-150.0,0.00022932,2]
[313326167,1707160238933,-150.0,0.00022934,2]
[313326168,1707160238942,-150.0,0.00022937,2]
[313326169,1707160238952,-150.0,0.00022938,2]
[313326170,1707160238961,-150.0,0.0002294,2]
[313326171,1707160238970,-150.0,0.00022942,2]
[313326172,1707160238980,-150.0,0.00022947,2]
[313326173,1707160238989,-150.0,0.00022949,2]
[313326174,1707160238999,-150.0,0.00022953,2]
[313326175,1707160239008,-1500.0,0.00022954,2]
[313326176,1707160239255,-150.0,0.00022957,2]
[313326177,1707160239276,-150.0,0.00022962,2]
[313326178,1707160239291,-150.0,0.00022964,2]
[313326179,1707160239300,-150.0,0.00022964,2]
[313326180,1707160239309,-150.0,0.00022968,2]
[313326181,1707160239318,-150.0,0.0002297,2]
[313326182,1707160239328,-150.0,0.00022971,2]
[313326183,1707160239338,-1500.0,0.00022973,2]
[313326184,1707160239347,-150.0,0.00022975,2]
[313326185,1707160239356,-150.0,0.00022976,2]
[313326186,1707160239366,-150.0,0.00022978,2]
[313326187,1707160239376,-150.0,0.00022978,2]
[313326188,1707160239385,-150.0,0.00022979,2]
[313326189,1707160239394,-150.0,0.00022983,2]
[313326190,1707160239402,-150.0,0.00022984,2]
[313326191,1707160239411,-150.0,0.00022988,2]
[313326192,1707160239421,-170.82416588,0.0002299,2]
[313326193,1707160239431,-150.0,0.00022993,2]
[313326194,1707160239440,-150.0,0.00022995,2]
[313326195,1707160239449,-155.0,0.00022996,2]
[313326196,1707160239458,-199.65296929,0.00022996,2]
[313326197,1707160239467,-2418.97396021,0.00022996,2]
[313326198,1707160239476,-460.79391895,0.00022996,2]
[313326199,1707160239485,-310.77911582,0.00022996,2]
[313326200,1707160239494,-265.32383303,0.00022996,2]
[313326201,1707160239503,-150.0,0.00022996,2]
[313326202,1707160239512,-150.0,0.00022996,2]
[313326203,1707160239521,-526.22979665,0.00022997,2]
[313326204,1707160239530,-163.36273261,0.00022997,2]
[313326205,1707160239539,-2000.0,0.00022998,2]
[313326206,1707160239548,-502.41371894,0.00022998,2]
[313326207,1707160239557,-1255.14945143,0.00022998,2]
[313326208,1707160239566,-525.34573836,0.00022998,2]
[313326209,1707160239575,-284.1871695,0.00022998,2]
[313326210,1707160239584,-401.38245199,0.00022998,2]
[313326211,1707160239594,-266.01806587,0.00022998,2]
[313326212,1707160239604,-292.70291374,0.00022998,2]
[313326213,1707160239615,-10546.99948315,0.00022998,2]
[313326214,1707160239624,-371.95881086,0.00022998,2]
[313326215,1707160239633,-338.32247396,0.00022998,2]
[313326216,1707160239642,-387.5983711,0.00022998,2]
[313326217,1707160239651,-181.25873367,0.00022999,2]
[313326218,1707160239659,-300.02,0.00022999,2]
[313326219,1707160239669,-3309.32935427,0.00022999,2]
[313326220,1707160239677,-697.58257051,0.00022999,2]
[313326221,1707160239699,-2410.01001848,0.00022999,2]
[313326224,1707160241187,-150.0,0.00022692,2]
[313326225,1707160241197,-150.0,0.00022747,2]
[313326226,1707160241206,-150.0,0.00022754,2]
[313326227,1707160241215,-150.0,0.00022757,2]
[313326228,1707160241225,-150.0,0.00022779,2]
[313326229,1707160241234,-150.0,0.0002278,2]
[313326230,1707160241243,-150.0,0.0002278,2]
[313326231,1707160241252,-150.0,0.00022784,2]
[313326232,1707160241262,-150.0,0.00022785,2]
[313326233,1707160241271,-32.44818481,0.00022793,2]
[313326234,1707160241282,-117.55181519,0.00022793,2]
[313326235,1707160241292,-150.0,0.00022793,2]
[313326236,1707160241301,-150.0,0.00022796,2]
[313326237,1707160241310,-150.0,0.00022797,2]
[313326238,1707160241319,-150.0,0.00022798,2]
[313326239,1707160241328,-119.12784161,0.0002281,2]
[313326240,1707160241340,-30.87215839,0.0002281,2]
[313326241,1707160241349,-150.0,0.00022819,2]
[313326242,1707160241359,-150.0,0.00022828,2]
[313326243,1707160241369,-150.0,0.0002284,2]
[313326244,1707160241378,-238.31134216,0.00022864,2]
[313326245,1707160241390,-37.6748918,0.00022864,2]
[313326246,1707160241399,-150.0,0.00022878,2]
[313326247,1707160241408,-150.0,0.00022896,2]
[313326248,1707160241417,-168.28604614,0.000229,2]
[313326249,1707160241426,-150.0,0.00022903,2]
[313326250,1707160241434,-150.0,0.00022907,2]
[313326251,1707160241444,-150.0,0.00022908,2]
[313326252,1707160241453,-111.03906206,0.00022911,2]
[313326277,1707160243031,-150.0,0.00022776,2]
[313326278,1707160243041,-119.1116607,0.00022842,2]
[313326279,1707160243066,-30.8883393,0.00022842,2]
[313326280,1707160243076,-38.96093794,0.00022911,2]
[313326281,1707160243085,-150.0,0.00022917,2]
[313326282,1707160243095,-150.0,0.00022927,2]
[313326283,1707160243104,-130.15072276,0.00022929,2]
[313326284,1707160243121,-19.84927724,0.00022929,2]
[313326285,1707160243130,-150.0,0.0002293,2]
[313326286,1707160243140,-150.0,0.00022942,2]
[313326287,1707160243149,-80.15072276,0.00022951,2]
[313326288,1707160243173,-69.84927724,0.00022951,2]
[313326289,1707160243182,-150.0,0.00022954,2]
[313326290,1707160243191,-150.0,0.00022957,2]
[313326291,1707160243201,-170.13,0.00022965,2]
[313326292,1707160243210,-150.0,0.00022974,2]
[313326293,1707160243219,-150.0,0.00022984,2]
[313326294,1707160243229,-31.66136556,0.00022999,2]
[313326295,1707160243249,-2586.23261734,0.00022999,2]
[313326296,1707160243261,-1470.25363359,0.00022999,2]
[313326297,1707160243270,-1000115.85284218,0.00023,2]
[313326298,1707160243279,-104270.76423842,0.00023,2]
[313326300,1707160243299,-118119.4685442,0.00023,2]
[313326301,1707160243308,-18985.9266419,0.00023,2]
[313326308,1707160246104,-3309.32935427,0.00022999,2]
[313326309,1707160246113,-13498.0968297,0.00023,2]
[313326310,1707160246125,-382.28943785,0.00023,2]
[313326311,1707160246144,-36712.54452849,0.00023,2]
[313326312,1707160246155,-74591.10602494,0.00023,2]
[313326313,1707160246198,-254.11616158,0.00023,2]
[313326314,1707160246211,-2904.71322091,0.00023,2]
[313326315,1707160246255,-1127.36546595,0.00023,2]
[313326316,1707160246266,-1242.6614883,0.00023,2]
[313326317,1707160246311,-1046.2800386,0.00023,2]
[313326376,1707160247532,150.0,0.00022387,2]
[313326377,1707160247749,150.0,0.00022348,2]
[313326378,1707160248066,150.0,0.0002248,2]
[313326379,1707160248395,150.0,0.00022338,2]
[313326380,1707160248716,150.0,0.00022299,2]
[313326381,1707160248763,150.0,0.00022423,2]
[313326382,1707160312804,1259.57477596,0.00022998,3]
[313326383,1707160385782,1154.32794017,0.00022998,3]
[313326384,1707160395410,156.27,0.00020248,2]
[313326385,1707160463083,844.87051889,0.00022998,3]
[313326386,1707160537261,715.51998297,0.00022998,3]
[313326387,1707160551143,2000.0,0.00021942,2]
[313326388,1707160611571,454.09797041,0.00022998,3]
[313326389,1707160684135,425.97788853,0.00022998,3]
[313326390,1707160685721,160.29,0.00022096,2]
[313326391,1707160706848,266.24,0.00021938,2]
[313326392,1707160754618,155.0,0.00021938,2]
[313326393,1707160759414,289.05350509,0.00022998,3]
[313326394,1707160770624,155.0,0.00021938,2]
[313326395,1707160794636,155.0,0.00021938,2]
[313326396,1707160812678,155.0,0.00021938,2]
[313326397,1707160818425,155.94,0.00020002,2]
[313326398,1707160830628,155.0,0.00021938,2]
[313326399,1707160833971,185.25515799,0.00022998,3]
[313326400,1707160907372,163.20070755,0.00022998,3]
[313326401,1707160979871,154.78356919,0.00022998,3]
[313326402,1707161048240,2000.0,0.0002189,2]
[313326403,1707161052551,296.79394148,0.00022998,3]
[313326404,1707161063001,14858.0,0.00022317,2]
[313326405,1707161111434,160.29,0.00022057,2]
[313326406,1707161205545,787.0,0.00021892,2]
[313326413,1707161427612,156.61,0.00019975,2]
[313326424,1707161432114,-156.61,0.00022505,2]
[313326425,1707161432123,-160.87706355,0.00022599,2]
[313326426,1707161432133,-337.58937732,0.00022699,2]
[313326427,1707161432170,-13073.99999999,0.00022699,2]
[313326428,1707161432181,-568.38709254,0.00022699,2]
[313326429,1707161432193,-11615.12573015,0.00022699,2]
[313326430,1707161432202,-240.65880932,0.00022699,2]
[313326431,1707161432226,-1845.29925551,0.00022699,2]
[313326432,1707161432237,-1638.91926737,0.00022699,2]
[313326433,1707161432248,-305.29529061,0.00022699,2]
[313326434,1707161432335,-1946.43488416,0.00022699,2]
[313326435,1707161432392,-533.75919609,0.00022699,2]
[313326436,1707161432403,-9000.0,0.00022699,2]
[313326440,1707161438253,-2104.98226571,0.00022699,2]
[313326441,1707161438271,-3533.88886504,0.00022699,2]
[313326442,1707161438304,-2840.39685999,0.00022699,2]
[313326443,1707161438323,-361.8480062,0.00022699,2]
[313326444,1707161438333,-150.0,0.00022724,2]
[313326445,1707161438343,-150.0,0.00022726,2]
[313326446,1707161438354,-150.0,0.00022744,2]
[313326447,1707161438365,-155.95566187,0.00022752,2]
[313326448,1707161438377,-150.0,0.00022757,2]
[313326449,1707161438388,-150.0,0.00022766,2]
[313326450,1707161438399,-150.0,0.00022766,2]
[313326451,1707161438410,-150.0,0.00022773,2]
[313326452,1707161438421,-150.0,0.00022788,2]
[313326453,1707161438431,-150.0,0.00022792,2]
[313326454,1707161438441,-397.11955931,0.00022802,2]
[313326455,1707161438458,-1102.88044069,0.00022802,2]
[313326456,1707161438469,-150.0,0.00022809,2]
[313326457,1707161438479,-140.26256144,0.00022814,2]
[313326458,1707161438513,-9.73743856,0.00022814,2]
[313326459,1707161438524,-800.0,0.00022815,2]
[313326460,1707161438534,-200.0,0.00022816,2]
[313326462,1707161438544,-800.0,0.00022816,2]
[313326464,1707161438555,-200.0,0.00022816,2]
[313326466,1707161438565,-150.0,0.0002282,2]
[313326468,1707161438574,-150.0,0.00022823,2]
[313326470,1707161438585,-150.0,0.00022836,2]
[313326472,1707161438595,-150.0,0.00022837,2]
[313326474,1707161438605,-1562.83568944,0.00022846,2]
[313326476,1707161438615,-150.0,0.00022848,2]
[313326478,1707161438624,-150.0,0.00022853,2]
[313326480,1707161438634,-150.0,0.00022854,2]
[313326482,1707161438643,-150.0,0.00022855,2]
[313326484,1707161438653,-150.0,0.00022857,2]
[313326486,1707161438663,-150.0,0.00022861,2]
[313326488,1707161438672,-1500.0,0.00022862,2]
[313326490,1707161438682,-150.0,0.00022865,2]
[313326492,1707161438691,-150.0,0.0002287,2]
[313326494,1707161438701,-150.0,0.00022873,2]
[313326497,1707161438714,-150.0,0.00022874,2]
[313326498,1707161438724,-1500.0,0.00022878,2]
[313326500,1707161438734,-300.0,0.00022883,2]
[313326501,1707161438745,-1500.0,0.00022884,2]
[313326502,1707161438754,-1000.0,0.00022885,2]
[313326503,1707161438768,-1000.0,0.00022885,2]
[313326504,1707161438777,-1000.0,0.00022885,2]
[313326505,1707161438786,-1000.0,0.00022885,2]
[313326506,1707161438796,-1000.0,0.00022885,2]
[313326507,1707161438805,-1000.0,0.00022885,2]
[313326508,1707161438814,-1000.0,0.00022885,2]
[313326509,1707161438824,-1000.0,0.00022885,2]
[313326510,1707161438833,-180.3842,0.00022885,2]
[313326511,1707161438843,-150.0,0.00022887,2]
[313326512,1707161438852,-150.0,0.00022888,2]
[313326513,1707161438861,-150.0,0.00022893,2]
[313326514,1707161438871,-488.8727,0.000229,2]
[313326515,1707161438881,-300.0,0.00022904,2]
[313326516,1707161438890,-150.0,0.00022912,2]
[313326517,1707161438900,-387.28956692,0.00022915,2]
[313326518,1707161438910,-153.21582247,0.00022915,2]
[313326519,1707161438919,-150.0,0.00022922,2]
[313326520,1707161438928,-150.0,0.00022935,2]
[313326521,1707161438937,-150.0,0.00022936,2]
[313326522,1707161438946,-150.0,0.00022939,2]
[313326523,1707161438957,-150.0,0.0002294,2]
[313326524,1707161438966,-150.0,0.00022942,2]
[313326525,1707161438976,-150.0,0.00022943,2]
[313326526,1707161438985,-307.40170157,0.00022943,2]
[313326527,1707161438994,-150.0,0.00022947,2]
[313326528,1707161439003,-44.09717615,0.00022947,2]
[313326529,1707161439017,-1455.90282385,0.00022947,2]
[313326530,1707161439026,-538.4664844,0.00022947,2]
[313326531,1707161439035,-150.0,0.00022966,2]
[313326532,1707161439045,-150.0,0.00022981,2]
[313326533,1707161439054,-150.0,0.00022983,2]
[313326534,1707161439063,-170.82416588,0.0002299,2]
[313326535,1707161439073,-150.0,0.00022995,2]
[313326536,1707161439084,-150.0,0.00022995,2]
[313326537,1707161439094,-545.08396776,0.00022998,2]
[313326538,1707161439107,-5567.6305842,0.00022998,2]
[313326539,1707161439117,-196.42295746,0.00022998,2]
[313326540,1707161439128,-2721.8262856,0.00022998,2]
[313326541,1707161439138,-1967.30599069,0.00022998,2]
[313326542,1707161439147,-155.0,0.00022998,2]
[313326543,1707161439158,-3309.32935427,0.00022999,2]
[313326544,1707161439168,-975.0,0.00023,2]
[313326545,1707161439178,-5282.41295931,0.00023,2]
[313326546,1707161439190,-848.26710872,0.00023,2]
[313326547,1707161439212,-363.90155308,0.00023,2]
[313326548,1707161439228,-658.40469442,0.00023,2]
[313326549,1707161439241,-7804.39286577,0.00023,2]
[313326553,1707161441329,-1143601.72251778,0.00023,2]
[313326554,1707161441338,-1423.92992662,0.00023047,2]
[313326555,1707161441348,-787.0,0.00024629,2]
[313326556,1707161441357,-2500.0,0.00024658,3]
[313326557,1707161441366,-250.0,0.00024658,2]
[313326558,1707161441375,-266.24,0.0002468,2]
[313326559,1707161441385,-206.0,0.00024727,2]
[313326560,1707161441394,-2364.83541332,0.00024807,2]
[313326561,1707161441412,-18687.02788768,0.00025,4]
[313326562,1707161441424,-350.0,0.00025,3]
[313326563,1707161441433,-156.61,0.00025035,2]
[313326564,1707161441442,-200.0,0.0002519,2]
[313326565,1707161441451,-200.0,0.0002519,2]
[313326566,1707161441460,-200.0,0.0002519,2]
[313326567,1707161441469,-538.46648439,0.00025994,2]
[313326568,1707161441478,-150.0,0.00026079,2]
[313326569,1707161441486,-1423.92992661,0.00026169,3]
[313326570,1707161441495,-2364.83541332,0.00026715,2]
[313326571,1707161441503,-400.0,0.00027,3]
[313326572,1707161441511,-150.0,0.00027,2]
[313326573,1707161441519,-151.15186373,0.0002727,2]
[313326574,1707161441528,-787.0,0.00027365,2]
[313326575,1707161441537,-16549.13,0.00027397,2]
[313326576,1707161441546,-1075.69,0.00027397,2]
[313326577,1707161441556,-3820.99,0.00027397,2]
[313326578,1707161441564,-266.24,0.00027422,2]
[313326579,1707161441572,-206.0,0.00027441,6]
[313326580,1707161441581,-156.61,0.00027565,2]
[313326581,1707161441590,-387.28956692,0.00028411,2]
[313326582,1707161441598,-2364.83541332,0.00028622,2]
[313326583,1707161441607,-450.0,0.00029,3]
[313326584,1707161441616,-538.46648439,0.00029041,2]
[313326585,1707161441626,-2727.0,0.000291,2]
[313326586,1707161441635,-10595.0,0.000291,2]
[313326587,1707161441645,-1423.92992661,0.00029291,4]
[313326588,1707161441654,-1006.0055,0.00029399,2]
[313326589,1707161441663,-155.0,0.0003,2]
[313326590,1707161441673,-1187.86641926,0.0003,7]
[313326591,1707161441683,-500.0,0.0003,2]
[313326592,1707161441692,-912.5,0.0003,2]
[313326594,1707161441701,-912.50001,0.0003,2]
[313326596,1707161441710,-912.50001,0.0003,2]
[313326598,1707161441720,-912.50001,0.0003,2]
[313326600,1707161441729,-912.50001,0.0003,2]
[313326602,1707161441738,-912.50001,0.0003,2]
[313326604,1707161441751,-156.61,0.00030096,2]
[313326606,1707161441761,-787.0,0.00030102,2]
[313326608,1707161441771,-206.0,0.00030154,10]
[313326610,1707161441780,-266.24,0.00030165,2]
[313326612,1707161441790,-2364.83541332,0.00030529,2]
[313326614,1707161441799,-27221.4145518,0.000318,3]
[313326616,1707161441810,-151.15186373,0.00031813,2]
[313326618,1707161441819,-538.46648439,0.00032088,2]
[313326620,1707161441828,-1423.92992661,0.00032413,6]
[313326623,1707161441838,-2364.83541332,0.00032436,4]
[313326625,1707161441847,-156.61,0.00032626,2]
[313326627,1707161441857,-861.0,0.00032693,2]
[313326629,1707161441866,-787.0,0.00032838,2]
[313326631,1707161441876,-206.0,0.00032867,15]
[313326633,1707161441885,-266.24,0.00032907,2]
[313326635,1707161441894,-387.28956692,0.00033908,6]
[313326637,1707161441904,-2364.83541332,0.00034344,6]
[313326639,1707161441915,-1124.63383179,0.000349,2]
[313326641,1707161441925,-1124.63383169,0.000349,2]
[313326643,1707161441934,-1124.63383169,0.000349,2]
[313326645,1707161441944,-1124.63383169,0.000349,2]
[313326647,1707161441954,-1124.63383169,0.000349,2]
[313326649,1707161441965,-1124.63383169,0.000349,2]
[313326651,1707161441974,-1124.63383169,0.000349,2]
[313326653,1707161441983,-1124.63383169,0.000349,2]
[313326655,1707161441992,-15776.01430629,0.00035,7]
[313326657,1707161442002,-497.86028,0.00035,2]
[313326659,1707161442011,-345.60115126,0.00035,7]
[313326661,1707161442020,-170.0,0.00035,2]
[313326663,1707161442030,-538.46648439,0.00035135,2]
[313326665,1707161442040,-156.61,0.00035156,2]
[313326667,1707161442049,-1423.92992661,0.00035534,7]
[313326669,1707161442059,-1124.63383169,0.00035579,2]
[313326671,1707161442068,-206.0,0.00035581,19]
[313326674,1707161442082,-184.96227971,0.00035725,2]
[313326676,1707161442092,-522.68164448,0.00035725,2]
[313326678,1707161442102,-2607.76882797,0.00035725,2]
[313326680,1707161442111,-183.18964412,0.00035725,2]
[313326682,1707161442121,-734.20940028,0.00035725,2]
[313326684,1707161442131,-233.31667762,0.00035725,2]
[313326686,1707161442141,-7381.05323776,0.00035725,2]
[313326688,1707161442151,-160.87706354,0.00035729,2]
[313326690,1707161442161,-9793.2188159,0.00035773,13]
[313326692,1707161442171,-12806.31363362,0.0003579,13]
[313326694,1707161442180,-383958.47623894,0.00035825,3]
[313326695,1707161442190,-751.86885441,0.00035825,2]
[313326696,1707161442199,-4023.16289277,0.00035825,2]
[313326697,1707161442209,-283374.58551973,0.00035825,15]
[313326698,1707161442219,-500.0,0.00035829,15]
[313326699,1707161442228,-542.22938257,0.00035829,15]
[313326700,1707161442238,-15281.04054405,0.00035843,13]
[313326701,1707161442248,-14980.70342028,0.00035843,15]
[313326702,1707161442258,-14931.95279896,0.00035843,15]
[313326703,1707161442267,-164.0,0.00036,2]
[313326704,1707161442277,-2364.83541332,0.00036251,9]
[313326705,1707161442286,-331.82563408,0.00036789,2]
[313326706,1707161442297,-242.85775935,0.00036789,2]
[313326707,1707161442307,-127235.79465768,0.0003679,5]
[313326708,1707161442316,-176.95,0.000369,2]
[313326709,1707161442325,-151.15186373,0.00037114,2]
[313326710,1707161442335,-1124.63383169,0.00037158,2]
[313326711,1707161442345,-352.75,0.00037448,2]
[313326712,1707161442354,-156.61,0.00037686,2]
[313326713,1707161442366,-293.4786568,0.00037874,2]
[313326714,1707161442376,-166.2935957,0.00037874,2]
[313326715,1707161442386,-257.6856875,0.00037874,2]
[313326716,1707161442396,-257.6856875,0.00037874,2]
[313326717,1707161442405,-4999.4616075,0.00037874,2]
[313326718,1707161442418,-2908.0261352,0.00037874,2]
[313326719,1707161442428,-10601.8386486,0.00037874,2]
[313326720,1707161442437,-6166.7488005,0.00037874,2]
[313326721,1707161442447,-178.083743,0.00037874,2]
[313326722,1707161442456,-178.083743,0.00037874,2]
[313326723,1707161442467,-761.8281091,0.00037874,2]
[313326724,1707161442477,-448.7426661,0.00037874,2]
[313326725,1707161442487,-148645.49272831,0.0003788,2]
[313326726,1707161442496,-200.0,0.0003789,7]
[313326727,1707161442736,-200.0,0.0003789,7]
[313326728,1707161442746,-200.0,0.0003789,7]
[313326729,1707161442755,-4547.40877774,0.000379,7]
[313326730,1707161442765,-1000.0,0.000379,2]
[313326731,1707161442775,-698066.925396,0.000379,3]
[313326732,1707161442785,-331.82563408,0.00037999,2]
[313326733,1707161442794,-242.85775935,0.00037999,2]
[313326734,1707161442803,-50000.0,0.00038,8]
[313326735,1707161442813,-435.43601483,0.00038,2]
[313326736,1707161442823,-2364.83541332,0.00038158,11]
[313326737,1707161442832,-1147.19,0.00038219,2]
[313326738,1707161442842,-1888.14,0.00038219,2]
[313326739,1707161442851,-403.88,0.00038219,2]
[313326740,1707161442861,-403.88,0.00038219,2]
[313326741,1707161442870,-206.0,0.00038294,24]
[313326742,1707161442879,-150.0,0.00038356,2]
[313326743,1707161442888,-300.0,0.00038356,7]
[313326744,1707161442897,-450.0,0.00038356,12]
[313326745,1707161442907,-150.25,0.00038356,2]
[313326746,1707161442916,-1423.92992661,0.00038656,9]
[313326747,1707161442926,-1124.63383169,0.00038736,2]
[313326749,1707161442935,-468.0,0.00038783,2]
[313326750,1707161442945,-395.38392573,0.0003888,2]
[313326751,1707161442955,-395.38392568,0.0003888,2]
[313326752,1707161442966,-395.38392568,0.0003888,2]
[313326753,1707161442976,-395.38392568,0.0003888,2]
[313326754,1707161442985,-395.38392568,0.0003888,2]
[313326756,1707161442995,-395.38392568,0.0003888,2]
[313326758,1707161443004,-522.68164446,0.00038986,2]
[313326759,1707161443014,-2607.76882796,0.00038986,2]
[313326760,1707161443023,-734.20940028,0.00038986,2]
[313326761,1707161443032,-233.31667762,0.00038986,2]
[313326762,1707161443041,-7381.05323774,0.00038986,2]
[313326764,1707161443050,-50000.0,0.00039,9]
[313326766,1707161443060,-1879.0,0.000391,7]
[313326768,1707161443069,-420.6637179,0.00039179,2]
[313326770,1707161443079,-257.6856875,0.00039179,2]
[313326771,1707161443090,-7090.8970797,0.00039179,2]
[313326772,1707161443099,-15036.9284966,0.00039179,2]
[313326776,1707161443108,-178.083743,0.00039179,2]
[313326778,1707161443118,-1074.9135522,0.00039179,2]
[313326780,1707161443128,-200000.0,0.00039206,30]
[313326782,1707161443137,-500.0,0.000393,7]
[313326784,1707161443147,-387.28956692,0.00039404,13]
[313326785,1707161443157,-1000.0,0.000396,15]
[313326786,1707161443167,-1000.0,0.000396,7]
[313326787,1707161443178,-202.76663822,0.00039997,4]
[313326789,1707161443188,-2911.22314988,0.00039998,2]
[313326791,1707161443198,-3350.11903617,0.00039999,4]
[313326793,1707161443207,-50000.0,0.0004,20]
[313326794,1707161443218,-1812.11,0.0004,5]
[313326795,1707161443228,-289.45993262,0.0004,4]
[313326796,1707161443238,-5000.0,0.0004,30]
[313326797,1707161443246,-2000.0,0.0004,4]
[313326798,1707161443255,-500.0,0.0004,2]
[313326799,1707161443264,-176.29954474,0.0004,120]
[313326800,1707161443273,-1579.89614399,0.0004,2]
[313326801,1707161443283,-545.53417472,0.0004,30]
[313326802,1707161443292,-1000.0,0.0004,9]
[313326803,1707161443301,-293.5731276,0.0004,12]
[313326804,1707161443310,-339.07066237,0.0004,12]
[313326805,1707161443319,-224.23,0.0004,2]
[313326806,1707161443328,-2364.83541332,0.00040065,14]
[313326807,1707161443337,-500.0,0.00040083,7]
[313326808,1707161443346,-500.0,0.00040083,7]
[313326809,1707161443356,-500.0,0.00040083,7]
[313326810,1707161443366,-373.4,0.00040083,7]
[313326811,1707161443375,-500.0,0.00040206,2]
[313326812,1707161443384,-200.0,0.00040206,2]
[313326813,1707161443394,-399.0,0.0004021,2]
[313326814,1707161443403,-156.61,0.00040217,2]
[313326815,1707161443413,-282.45096424,0.00040261,4]
[313326816,1707161443422,-1124.63383169,0.00040315,5]
[313326817,1707161443431,-1000.0,0.000404,3]
[313326818,1707161443441,-395.38392568,0.0004048,2]
[313326819,1707161443450,-1000.0,0.000406,2]
[313326820,1707161443461,-20384.02486075,0.0004067,4]
[313326821,1707161443470,-200.0,0.00040753,2]
[313326822,1707161443480,-150.25,0.00040753,2]
[313326823,1707161443489,-159.76048776,0.00040973,4]
[313326824,1707161443499,-196.07227262,0.00040973,4]
[313326825,1707161443509,-161.72637899,0.00040973,4]
[313326826,1707161443518,-155.83298268,0.00040973,4]
[313326827,1707161443528,-366.02470053,0.00040973,4]
[313326828,1707161443537,-233.42707403,0.00040973,4]
[313326830,1707161443546,-274.0205093,0.00040973,4]
[313326831,1707161443556,-311.59150887,0.00040973,4]
[313326832,1707161443566,-308.75805515,0.00040973,4]
[313326833,1707161443576,-157.12495974,0.00040973,4]
[313326834,1707161443585,-157.16716868,0.00040973,4]
[313326835,1707161443595,-244.82534313,0.00040973,4]
[313326836,1707161443604,-158.23937767,0.00040974,4]
[313326837,1707161443614,-156.83412772,0.00040974,4]
[313326838,1707161443624,-50000.0,0.00041,21]
[313326839,1707161443633,-960.39447797,0.00041,2]
[313326840,1707161443643,-200.0,0.00041,16]
[313326841,1707161443652,-150.0,0.00041,11]
[313326842,1707161443662,-789.0264754,0.00041,2]
[313326843,1707161443671,-200.0,0.00041,2]
[313326844,1707161443681,-579.501545,0.00041,16]
[313326845,1707161443691,-150.0,0.00041,16]
[313326846,1707161443700,-206.0,0.00041007,28]
[313326847,1707161443710,-19472.0183447,0.00041011,2]
[313326848,1707161443718,-178.083743,0.00041011,2]
[313326849,1707161443728,-1387.9989952,0.00041011,2]
[313326850,1707161443737,-547.8487791,0.00041039,2]
[313326851,1707161443746,-257.6856875,0.00041039,2]
[313326852,1707161443756,-9182.332552,0.00041039,2]
[313326853,1707161443765,-675.0338402,0.00041067,2]
[313326854,1707161443774,-257.6856875,0.00041067,2]
[313326855,1707161443783,-11273.7680243,0.00041067,2]